[Event "Nové Hrady - Blesk"]
[Site "Nové Hrady, Czech Republic"]
[Date "2023.08.17"]
[Round "5.10"]
[White "Hokr, Matyas"]
[Black "Durchan, Milan"]
[Result "1-0"]
[TimeControl "2x3+2s"]
[WhiteFideId "23734663"]
[BlackFideId "333212"]
[WhiteElo "1472"]
[BlackElo "1677"]

1. e4 {[%clk 00:03:02]} {[%emt 00:00:02]} c6 {[%clk 00:03:03]} 2. d4 {[%clk
00:03:03]} d5 {[%clk 00:03:04]} 3. e5 {[%clk 00:03:04]} Bf5 {[%clk 00:03:05]}
{[%emt 00:00:04]} 4. h4 {[%clk 00:02:58]} {[%emt 00:00:08]} h5 {[%clk
00:03:00]} {[%emt 00:00:07]} 5. Nc3 {[%clk 00:02:49]} {[%emt 00:00:12]} e6
{[%clk 00:02:59]} {[%emt 00:00:02]} 6. Bg5 {[%clk 00:02:49]} {[%emt 00:00:06]}
Qb6 {[%clk 00:02:55]} {[%emt 00:00:02]} 7. Rb1 {[%clk 00:02:43]} {[%emt
00:00:09]} c5 {[%clk 00:02:55]} {[%emt 00:00:02]} 8. Bb5+ {[%clk 00:02:27]}
{[%emt 00:00:18]} Nc6 {[%clk 00:02:49]} {[%emt 00:00:08]} 9. Bxc6+ {[%clk
00:02:27]} {[%emt 00:00:01]} bxc6 {[%clk 00:02:40]} {[%emt 00:00:11]} 10. Nf3
{[%clk 00:02:15]} {[%emt 00:00:13]} Bg4 {[%clk 00:02:27]} {[%emt 00:00:15]} 11.
Qd3 {[%clk 00:02:07]} {[%emt 00:00:10]} Bxf3 {[%clk 00:02:22]} {[%emt
00:00:08]} 12. dxc5 {[%clk 00:02:00]} {[%emt 00:00:10]} Bxc5 {[%clk 00:02:14]}
{[%emt 00:00:09]} 13. Qxf3 {[%clk 00:02:00]} {[%emt 00:00:02]} Bb4 {[%clk
00:02:00]} {[%emt 00:00:17]} 14. O-O {[%clk 00:01:57]} {[%emt 00:00:05]} Ne7
{[%clk 00:01:54]} {[%emt 00:00:08]} 15. Bxe7 {[%clk 00:01:52]} {[%emt
00:00:07]} Bxe7 {[%clk 00:01:54]} {[%emt 00:00:01]} 16. Qg3 {[%clk 00:01:44]}
{[%emt 00:00:10]} g6 {[%clk 00:01:54]} {[%emt 00:00:02]} 17. Kh1 {[%clk
00:01:29]} {[%emt 00:00:17]} Qd8 {[%clk 00:01:54]} {[%emt 00:00:02]} 18. f4
{[%clk 00:01:28]} {[%emt 00:00:03]} Bxh4 {[%clk 00:01:50]} {[%emt 00:00:05]} 19.
Qh3 {[%clk 00:01:21]} {[%emt 00:00:09]} Be7 {[%clk 00:01:41]} {[%emt 00:00:12]}
20. Ne2 {[%clk 00:01:01]} {[%emt 00:00:22]} O-O {[%clk 00:01:34]} {[%emt
00:00:10]} 21. Ng3 {[%clk 00:00:54]} {[%emt 00:00:08]} Kg7 {[%clk 00:01:24]}
{[%emt 00:00:13]} 22. Rf3 {[%clk 00:00:53]} {[%emt 00:00:02]} h4 {[%clk
00:01:08]} {[%emt 00:00:17]} 23. Ne2 {[%clk 00:00:37]} {[%emt 00:00:19]} Rh8
{[%clk 00:01:09]} 24. Nd4 {[%clk 00:00:32]} {[%emt 00:00:08]} Rc8 {[%clk
00:00:59]} {[%emt 00:00:13]} 25. f5 {[%clk 00:00:21]} {[%emt 00:00:13]} exf5
{[%clk 00:00:58]} {[%emt 00:00:02]} 26. e6 {[%clk 00:00:21]} {[%emt 00:00:03]}
f6 {[%clk 00:00:43]} {[%emt 00:00:15]} 27. Re3 {[%clk 00:00:12]} {[%emt
00:00:12]} c5 {[%clk 00:00:40]} {[%emt 00:00:04]} 28. Nb5 {[%clk 00:00:10]}
{[%emt 00:00:05]} a6 {[%clk 00:00:36]} {[%emt 00:00:06]} 29. Na3 {[%clk
00:00:10]} {[%emt 00:00:02]} d4 {[%clk 00:00:31]} {[%emt 00:00:08]} 30. Re2
{[%clk 00:00:09]} {[%emt 00:00:02]} Qd5 {[%clk 00:00:27]} {[%emt 00:00:05]} 31.
c4 {[%clk 00:00:05]} {[%emt 00:00:07]} dxc3 {[%clk 00:00:24]} {[%emt 00:00:05]}
32. Qxc3 {[%clk 00:00:05]} {[%emt 00:00:03]} Qd4 {[%clk 00:00:24]} {[%emt
00:00:02]} 33. Qxd4 {[%clk 00:00:04]} {[%emt 00:00:03]} cxd4 {[%clk 00:00:25]}
34. Rd2 {[%clk 00:00:05]} Rhd8 {[%clk 00:00:24]} {[%emt 00:00:04]} 35. Rbd1
{[%clk 00:00:06]} Bxa3 {[%clk 00:00:21]} {[%emt 00:00:06]} 36. bxa3 {[%clk
00:00:08]} Rc4 37. Kg1 {[%emt 00:00:04]} Kf8 {[%clk 00:00:16]} {[%emt
00:00:04]} 38. Re1 {[%clk 00:00:08]} {[%emt 00:00:02]} Ke7 {[%clk 00:00:17]} 39.
Rd3 {[%clk 00:00:08]} {[%emt 00:00:02]} g5 {[%clk 00:00:16]} {[%emt 00:00:03]}
40. Red1 {[%clk 00:00:08]} {[%emt 00:00:01]} Kxe6 {[%clk 00:00:16]} {[%emt
00:00:02]} 41. Re1+ {[%clk 00:00:09]} {[%emt 00:00:02]} Kf7 {[%clk 00:00:17]}
42. Red1 {[%clk 00:00:10]} {[%emt 00:00:01]} Kg6 {[%clk 00:00:18]} 43. Kf2
{[%clk 00:00:11]} Kh5 {[%clk 00:00:19]} 44. Kf3 {[%clk 00:00:12]} Rc3 {[%clk
00:00:19]} {[%emt 00:00:05]} 45. Rxc3 {[%clk 00:00:12]} dxc3 {[%clk 00:00:19]}
{[%emt 00:00:03]} 46. Rxd8 {[%clk 00:00:14]} g4+ {[%clk 00:00:19]} {[%emt
00:00:03]} 47. Kf4 {[%clk 00:00:15]} h3 {[%clk 00:00:20]} 48. Rh8+ {[%clk
00:00:15]} {[%emt 00:00:03]} Kg6 {[%clk 00:00:21]} {[%emt 00:00:01]} 49. gxh3
{[%clk 00:00:16]} c2 {[%clk 00:00:20]} {[%emt 00:00:04]} 50. Rc8 {[%clk
00:00:17]} {[%emt 00:00:02]} gxh3 {[%clk 00:00:21]} 51. Rxc2 {[%emt 00:00:02]}
Kh5 52. Rh2 {[%clk 00:00:18]} Kh4 {[%clk 00:00:23]} 53. a4 {[%clk 00:00:19]}
1-0

[Event "Nové Hrady - Blesk"]
[Site "Nové Hrady, Czech Republic"]
[Date "2023.08.17"]
[Round "6.1"]
[White "Pulpan, Jakub"]
[Black "Vybiral, Zdenek"]
[Result "1-0"]
[TimeControl "2x3+2s"]
[WhiteFideId "302759"]
[BlackFideId "305200"]
[WhiteElo "2452"]
[BlackElo "2158"]

1. Nf3 {[%clk 00:03:01]} {[%emt 00:00:02]} Nf6 {[%clk 00:03:03]} 2. b3 {[%clk
00:03:02]} d5 {[%clk 00:03:00]} {[%emt 00:00:08]} 3. Bb2 {[%clk 00:03:03]} Bg4
{[%clk 00:02:58]} {[%emt 00:00:04]} 4. g3 {[%clk 00:03:01]} {[%emt 00:00:04]}
Nbd7 {[%clk 00:02:51]} {[%emt 00:00:08]} 5. Bg2 {[%clk 00:03:02]} {[%emt
00:00:02]} e6 {[%clk 00:02:52]} 6. c4 {[%clk 00:03:02]} {[%emt 00:00:02]} c6
{[%clk 00:02:52]} {[%emt 00:00:02]} 7. O-O {[%clk 00:03:01]} {[%emt 00:00:02]}
Bc5 {[%clk 00:02:53]} 8. d4 {[%clk 00:02:51]} {[%emt 00:00:14]} Be7 {[%clk
00:02:52]} {[%emt 00:00:02]} 9. Nbd2 {[%clk 00:02:49]} {[%emt 00:00:05]} O-O
{[%clk 00:02:42]} {[%emt 00:00:11]} 10. a3 {[%clk 00:02:48]} {[%emt 00:00:03]}
a5 {[%clk 00:02:43]} {[%emt 00:00:02]} 11. Re1 {[%clk 00:02:49]} b5 {[%clk
00:02:11]} {[%emt 00:00:34]} 12. Ne5 {[%clk 00:02:26]} {[%emt 00:00:24]} Nxe5
{[%clk 00:02:02]} {[%emt 00:00:12]} 13. dxe5 {[%clk 00:02:26]} Nd7 {[%clk
00:01:58]} {[%emt 00:00:06]} 14. Qc2 {[%clk 00:02:20]} {[%emt 00:00:08]} Qb6
{[%clk 00:01:50]} {[%emt 00:00:10]} 15. e3 {[%clk 00:01:23]} {[%emt 00:00:59]}
Rab8 {[%clk 00:01:11]} {[%emt 00:00:42]} 16. Rab1 {[%clk 00:01:09]} {[%emt
00:00:16]} Rfc8 {[%clk 00:01:07]} {[%emt 00:00:06]} 17. Bd4 {[%clk 00:00:59]}
{[%emt 00:00:12]} Qc7 {[%clk 00:00:51]} {[%emt 00:00:18]} 18. Bb2 {[%clk
00:00:42]} {[%emt 00:00:20]} Bf5 {[%clk 00:00:39]} {[%emt 00:00:12]} 19. e4
{[%clk 00:00:42]} {[%emt 00:00:02]} Bg6 {[%clk 00:00:41]} 20. cxd5 {[%clk
00:00:15]} {[%emt 00:00:29]} cxd5 {[%clk 00:00:39]} {[%emt 00:00:05]} 21. Qxc7
{[%clk 00:00:12]} {[%emt 00:00:05]} Rxc7 {[%clk 00:00:40]} 22. Rbc1 {[%clk
00:00:13]} Rbc8 {[%clk 00:00:30]} {[%emt 00:00:14]} 23. Rxc7 {[%clk 00:00:14]}
Rxc7 {[%clk 00:00:31]} 24. Nb1 {[%clk 00:00:04]} {[%emt 00:00:13]} Bxe4 {[%clk
00:00:24]} {[%emt 00:00:09]} 25. Bxe4 {[%clk 00:00:04]} dxe4 {[%clk 00:00:25]}
{[%emt 00:00:03]} 26. Bd4 {[%clk 00:00:03]} {[%emt 00:00:03]} b4 {[%clk
00:00:09]} {[%emt 00:00:17]} 27. a4 {[%clk 00:00:03]} {[%emt 00:00:03]} Rc2
{[%clk 00:00:10]} 28. Kg2 {[%clk 00:00:04]} {[%emt 00:00:02]} Bc5 {[%clk
00:00:11]} 29. Rxe4 {[%clk 00:00:05]} {[%emt 00:00:02]} h5 {[%clk 00:00:07]}
{[%emt 00:00:06]} 30. Be3 {[%clk 00:00:03]} {[%emt 00:00:04]} Rb2 {[%emt
00:00:05]} 31. Bxc5 {[%clk 00:00:04]} Rxb1 {[%clk 00:00:04]} {[%emt 00:00:03]}
32. Bd6 {[%clk 00:00:04]} {[%emt 00:00:02]} Rxb3 {[%clk 00:00:04]} {[%emt
00:00:02]} 33. Rd4 {[%clk 00:00:04]} Ra3 {[%clk 00:00:03]} {[%emt 00:00:05]} 34.
Bc7 {[%clk 00:00:05]} Nc5 {[%clk 00:00:03]} {[%emt 00:00:03]} 35. Bxa5 {[%clk
00:00:05]} {[%emt 00:00:01]} Rxa4 {[%clk 00:00:03]} {[%emt 00:00:02]} 36. Bxb4
{[%clk 00:00:06]} Na6 {[%clk 00:00:00]} {[%emt 00:00:03]} 1-0

[Event "Nové Hrady - Blesk"]
[Site "Nové Hrady, Czech Republic"]
[Date "2023.08.17"]
[Round "6.2"]
[White "Blazek, Jiri"]
[Black "Zeman, Matyas"]
[Result "0-1"]
[TimeControl "2x3+2s"]
[WhiteFideId "330515"]
[BlackFideId "364398"]
[WhiteElo "2061"]
[BlackElo "2254"]

1. d4 {[%clk 00:03:01]} {[%emt 00:00:02]} Nf6 {[%clk 00:03:04]} 2. e3 {[%clk
00:03:02]} {[%emt 00:00:03]} e6 {[%clk 00:03:03]} {[%emt 00:00:02]} 3. Bd3
{[%clk 00:03:02]} d5 {[%clk 00:03:04]} {[%emt 00:00:03]} 4. f4 {[%clk
00:03:03]} {[%emt 00:00:02]} c5 {[%clk 00:03:04]} {[%emt 00:00:02]} 5. c3
{[%clk 00:03:04]} {[%emt 00:00:01]} Nc6 {[%clk 00:03:03]} {[%emt 00:00:03]} 6.
Nf3 {[%clk 00:03:03]} {[%emt 00:00:02]} Bd6 {[%clk 00:03:04]} 7. O-O {[%clk
00:03:02]} {[%emt 00:00:05]} O-O {[%clk 00:03:02]} {[%emt 00:00:03]} 8. Ne5
{[%clk 00:03:01]} {[%emt 00:00:03]} Ne7 {[%clk 00:02:45]} {[%emt 00:00:19]} 9.
Qf3 {[%clk 00:02:56]} {[%emt 00:00:07]} b6 {[%clk 00:02:38]} {[%emt 00:00:09]}
10. Nd2 {[%clk 00:02:53]} {[%emt 00:00:05]} Bb7 {[%clk 00:02:39]} 11. b3 {[%clk
00:02:47]} {[%emt 00:00:10]} Rc8 {[%clk 00:02:37]} {[%emt 00:00:04]} 12. Bb2
{[%clk 00:02:34]} {[%emt 00:00:14]} g6 {[%clk 00:02:14]} {[%emt 00:00:25]} 13.
Qh3 {[%clk 00:02:26]} {[%emt 00:00:10]} Ne4 {[%clk 00:02:08]} {[%emt 00:00:08]}
14. Nxe4 {[%clk 00:02:11]} {[%emt 00:00:18]} dxe4 {[%clk 00:02:09]} 15. Be2
{[%clk 00:01:58]} {[%emt 00:00:15]} cxd4 {[%clk 00:01:57]} {[%emt 00:00:13]} 16.
exd4 {[%clk 00:01:38]} {[%emt 00:00:22]} Nf5 {[%clk 00:01:48]} {[%emt
00:00:11]} 17. Ng4 {[%clk 00:01:01]} {[%emt 00:00:39]} h5 {[%clk 00:01:27]}
{[%emt 00:00:23]} 18. Ne3 {[%clk 00:00:45]} {[%emt 00:00:18]} Qf6 {[%clk
00:01:15]} {[%emt 00:00:15]} 19. Nxf5 {[%clk 00:00:41]} {[%emt 00:00:05]} Qxf5
{[%clk 00:01:16]} 20. g4 {[%clk 00:00:38]} {[%emt 00:00:06]} hxg4 {[%clk
00:01:13]} {[%emt 00:00:05]} 21. Bxg4 {[%clk 00:00:37]} {[%emt 00:00:03]} Qf6
{[%clk 00:01:14]} 22. Rae1 {[%clk 00:00:31]} {[%emt 00:00:08]} Kg7 {[%clk
00:01:15]} {[%emt 00:00:03]} 23. Re3 {[%clk 00:00:28]} {[%emt 00:00:05]} Rh8
{[%clk 00:01:12]} {[%emt 00:00:05]} 24. Qg2 {[%clk 00:00:29]} Bxf4 {[%clk
00:01:09]} {[%emt 00:00:06]} 25. c4 {[%clk 00:00:24]} {[%emt 00:00:07]} Bxe3+
{[%clk 00:01:08]} {[%emt 00:00:02]} 26. Kh1 {[%clk 00:00:24]} {[%emt 00:00:02]}
Bf4 {[%clk 00:01:06]} {[%emt 00:00:05]} 27. d5 {[%clk 00:00:24]} e5 {[%clk
00:01:07]} 28. Bxc8 {[%clk 00:00:19]} {[%emt 00:00:09]} Bxc8 {[%clk 00:01:05]}
{[%emt 00:00:04]} 29. Qe2 {[%clk 00:00:17]} {[%emt 00:00:04]} Qg5 {[%clk
00:00:50]} {[%emt 00:00:18]} 30. Rg1 {[%clk 00:00:13]} {[%emt 00:00:06]} Qh4
{[%clk 00:00:47]} {[%emt 00:00:04]} 31. Rg2 {[%clk 00:00:13]} {[%emt 00:00:02]}
Bg4 {[%clk 00:00:39]} {[%emt 00:00:10]} 32. Qxe4 {[%clk 00:00:13]} {[%emt
00:00:02]} f6 {[%clk 00:00:25]} {[%emt 00:00:17]} 33. b4 {[%clk 00:00:10]}
{[%emt 00:00:04]} Bf5 {[%clk 00:00:18]} {[%emt 00:00:09]} 34. Qe2 {[%clk
00:00:08]} {[%emt 00:00:04]} g5 {[%clk 00:00:06]} {[%emt 00:00:14]} 35. c5
{[%clk 00:00:10]} bxc5 {[%clk 00:00:07]} 36. bxc5 {[%clk 00:00:10]} {[%emt
00:00:03]} g4 {[%clk 00:00:07]} {[%emt 00:00:03]} 37. Qf1 {[%clk 00:00:09]}
{[%emt 00:00:03]} g3 {[%clk 00:00:06]} {[%emt 00:00:02]} 38. d6 {[%clk
00:00:08]} {[%emt 00:00:03]} Be4 {[%clk 00:00:05]} {[%emt 00:00:04]} 0-1

[Event "Nové Hrady - Blesk"]
[Site "Nové Hrady, Czech Republic"]
[Date "2023.08.17"]
[Round "6.3"]
[White "Šimůnek, Jakub Šimon"]
[Black "Hak, David"]
[Result "1/2-1/2"]
[TimeControl "2x3+2s"]
[WhiteFideId "23709464"]
[BlackFideId "377007"]
[WhiteElo "1921"]
[BlackElo "2037"]

1. e4 {[%clk 00:03:02]} {[%emt 00:00:02]} c5 {[%clk 00:03:04]} 2. Nf3 {[%clk
00:03:03]} Nc6 {[%clk 00:03:05]} 3. Bb5 {[%clk 00:03:04]} {[%emt 00:00:04]} g6
{[%clk 00:03:06]} 4. O-O {[%clk 00:03:03]} {[%emt 00:00:03]} Bg7 {[%clk
00:03:08]} 5. Re1 {[%clk 00:03:01]} {[%emt 00:00:04]} Nf6 {[%clk 00:03:04]}
{[%emt 00:00:06]} 6. Bxc6 {[%clk 00:03:02]} {[%emt 00:00:02]} dxc6 {[%clk
00:02:54]} {[%emt 00:00:12]} 7. d3 {[%clk 00:03:01]} {[%emt 00:00:03]} O-O
{[%emt 00:00:22]} 8. h3 {[%emt 00:00:01]} Ne8 {[%clk 00:02:30]} {[%emt
00:00:05]} 9. c3 {[%clk 00:02:58]} {[%emt 00:00:06]} b6 {[%clk 00:02:14]}
{[%emt 00:00:18]} 10. d4 {[%clk 00:02:54]} {[%emt 00:00:07]} cxd4 {[%clk
00:01:59]} {[%emt 00:00:17]} 11. cxd4 {[%clk 00:02:55]} Nc7 {[%clk 00:01:56]}
{[%emt 00:00:05]} 12. Nc3 {[%clk 00:02:49]} {[%emt 00:00:08]} Bb7 {[%clk
00:01:56]} 13. Be3 {[%clk 00:02:45]} {[%emt 00:00:06]} Ne6 {[%clk 00:01:52]}
{[%emt 00:00:07]} 14. Qa4 {[%clk 00:02:24]} {[%emt 00:00:23]} Qc7 {[%clk
00:01:35]} {[%emt 00:00:18]} 15. Rac1 {[%clk 00:02:12]} {[%emt 00:00:15]} Rfd8
{[%clk 00:01:29]} {[%emt 00:00:08]} 16. Red1 {[%clk 00:01:19]} {[%emt
00:00:54]} Qd7 {[%clk 00:01:11]} {[%emt 00:00:20]} 17. Qb3 {[%clk 00:01:02]}
{[%emt 00:00:19]} Rac8 {[%clk 00:00:51]} {[%emt 00:00:22]} 18. Rd2 {[%clk
00:00:21]} {[%emt 00:00:43]} Ba8 {[%clk 00:00:47]} {[%emt 00:00:06]} 19. Rcd1
{[%clk 00:00:18]} {[%emt 00:00:06]} Qb7 {[%clk 00:00:47]} {[%emt 00:00:02]} 20.
d5 {[%clk 00:00:17]} {[%emt 00:00:03]} cxd5 {[%clk 00:00:35]} {[%emt 00:00:14]}
21. Nxd5 {[%clk 00:00:18]} Kh8 {[%clk 00:00:15]} {[%emt 00:00:23]} 22. Qb4
{[%clk 00:00:12]} {[%emt 00:00:08]} Nc5 {[%clk 00:00:15]} {[%emt 00:00:02]} 23.
a3 {[%clk 00:00:07]} {[%emt 00:00:07]} Rd6 {[%clk 00:00:09]} {[%emt 00:00:08]}
24. Bxc5 {[%clk 00:00:06]} {[%emt 00:00:03]} bxc5 {[%clk 00:00:10]} 25. Qxb7
{[%clk 00:00:06]} {[%emt 00:00:02]} Bxb7 {[%clk 00:00:11]} 26. Nxe7 {[%clk
00:00:07]} {[%emt 00:00:02]} Rxd2 {[%emt 00:00:02]} 27. Rxd2 {[%emt 00:00:01]}
Re8 {[%clk 00:00:11]} {[%emt 00:00:01]} 28. Rd7 {[%clk 00:00:06]} {[%emt
00:00:05]} Bxe4 {[%clk 00:00:11]} {[%emt 00:00:02]} 29. Rc7 {[%clk 00:00:05]}
{[%emt 00:00:03]} Bxb2 {[%clk 00:00:10]} {[%emt 00:00:02]} 30. Nc6 {[%clk
00:00:05]} {[%emt 00:00:03]} Bxa3 {[%clk 00:00:10]} {[%emt 00:00:02]} 31. Nxa7
{[%clk 00:00:06]} Bb4 {[%clk 00:00:08]} {[%emt 00:00:04]} 32. Rxf7 {[%clk
00:00:07]} {[%emt 00:00:02]} Ra8 {[%clk 00:00:08]} 33. Rc7 {[%clk 00:00:06]}
{[%emt 00:00:03]} c4 {[%clk 00:00:09]} 34. Rxc4 {[%clk 00:00:07]} {[%emt
00:00:02]} Bxf3 {[%clk 00:00:10]} 35. Rxb4 {[%clk 00:00:08]} {[%emt 00:00:02]}
Bxg2 {[%clk 00:00:09]} {[%emt 00:00:04]} 36. Kxg2 {[%clk 00:00:09]} 1/2-1/2

[Event "Nové Hrady - Blesk"]
[Site "Nové Hrady, Czech Republic"]
[Date "2023.08.17"]
[Round "6.4"]
[White "Richtrova, Eliska"]
[Black "Hostička, František"]
[Result "0-1"]
[TimeControl "2x3+2s"]
[WhiteFideId "300683"]
[BlackFideId "302295"]
[WhiteElo "2122"]
[BlackElo "2074"]

1. e4 {[%emt 00:01:05]} Nf6 2. d3 {[%clk 00:03:03]} {[%emt 00:00:02]} e5 {[%clk
00:03:05]} 3. Nf3 {[%emt 00:00:03]} Nc6 {[%emt 00:00:01]} 4. Be2 {[%emt
00:00:02]} g6 {[%emt 00:00:01]} 5. O-O {[%clk 00:03:02]} Bg7 {[%clk 00:03:09]}
6. c3 {[%clk 00:03:00]} {[%emt 00:00:06]} O-O {[%clk 00:03:09]} 7. h3 {[%clk
00:03:00]} {[%emt 00:00:02]} d5 {[%clk 00:03:02]} {[%emt 00:00:09]} 8. Nbd2
{[%clk 00:03:00]} {[%emt 00:00:02]} a5 {[%clk 00:03:02]} {[%emt 00:00:02]} 9.
Qc2 {[%clk 00:02:59]} {[%emt 00:00:03]} h6 {[%clk 00:02:56]} {[%emt 00:00:08]}
10. Re1 {[%clk 00:02:58]} {[%emt 00:00:03]} Kh7 {[%clk 00:02:53]} {[%emt
00:00:05]} 11. b3 {[%clk 00:02:55]} {[%emt 00:00:05]} Nh5 {[%clk 00:02:50]}
{[%emt 00:00:05]} 12. Bf1 {[%clk 00:02:54]} {[%emt 00:00:03]} Nf4 {[%clk
00:02:31]} {[%emt 00:00:22]} 13. Bb2 {[%clk 00:02:42]} {[%emt 00:00:13]} d4
{[%clk 00:02:06]} {[%emt 00:00:27]} 14. cxd4 {[%clk 00:02:38]} {[%emt
00:00:06]} Nb4 {[%clk 00:01:54]} {[%emt 00:00:14]} 15. Qb1 {[%clk 00:02:38]}
{[%emt 00:00:02]} exd4 {[%clk 00:01:48]} {[%emt 00:00:08]} 16. a3 {[%clk
00:02:22]} {[%emt 00:00:19]} Nc6 {[%clk 00:01:49]} 17. Qc2 {[%clk 00:02:10]}
{[%emt 00:00:13]} Be6 {[%clk 00:01:43]} {[%emt 00:00:07]} 18. Rac1 {[%clk
00:02:04]} {[%emt 00:00:08]} Qd7 {[%clk 00:01:23]} {[%emt 00:00:22]} 19. Kh2
{[%clk 00:02:02]} {[%emt 00:00:04]} Rac8 {[%clk 00:01:09]} {[%emt 00:00:17]} 20.
Ng1 {[%clk 00:02:02]} {[%emt 00:00:02]} Ne5 {[%clk 00:00:54]} {[%emt 00:00:17]}
21. g3 {[%clk 00:02:02]} {[%emt 00:00:02]} Nh5 {[%clk 00:00:44]} {[%emt
00:00:11]} 22. f4 {[%clk 00:01:58]} {[%emt 00:00:06]} Nc6 {[%clk 00:00:41]}
{[%emt 00:00:06]} 23. Bg2 {[%clk 00:01:35]} {[%emt 00:00:24]} Qe8 {[%clk
00:00:22]} {[%emt 00:00:22]} 24. Qc5 {[%clk 00:01:25]} {[%emt 00:00:12]} f5
{[%clk 00:00:15]} {[%emt 00:00:09]} 25. Ngf3 {[%clk 00:01:19]} {[%emt
00:00:08]} Rf7 {[%clk 00:00:16]} {[%emt 00:00:02]} 26. Nxd4 {[%clk 00:00:32]}
{[%emt 00:00:48]} Nxd4 {[%clk 00:00:16]} {[%emt 00:00:02]} 27. Bxd4 {[%clk
00:00:34]} Bf8 {[%clk 00:00:06]} {[%emt 00:00:12]} 28. Qxa5 {[%clk 00:00:23]}
{[%emt 00:00:13]} b6 {[%clk 00:00:08]} 29. Qa4 {[%clk 00:00:07]} {[%emt
00:00:18]} Bd7 {[%clk 00:00:08]} {[%emt 00:00:02]} 30. Qc4 {[%clk 00:00:08]} c5
{[%clk 00:00:09]} {[%emt 00:00:02]} 31. Bb2 {[%clk 00:00:08]} Be6 {[%clk
00:00:10]} 32. Qc3 {[%clk 00:00:09]} Bg7 {[%emt 00:00:04]} 33. Qc2 fxe4 {[%clk
00:00:11]} 34. Nxe4 {[%clk 00:00:11]} {[%emt 00:00:02]} Rd8 {[%clk 00:00:10]}
{[%emt 00:00:03]} 35. Bxg7 {[%clk 00:00:12]} Nxg7 {[%clk 00:00:11]} {[%emt
00:00:02]} 36. Qb2 {[%clk 00:00:13]} {[%emt 00:00:01]} Qe7 {[%clk 00:00:11]}
{[%emt 00:00:02]} 37. Nc3 {[%clk 00:00:11]} {[%emt 00:00:03]} Rxd3 {[%clk
00:00:11]} {[%emt 00:00:03]} 38. Nd5 {[%clk 00:00:12]} {[%emt 00:00:01]} Qd6
{[%clk 00:00:08]} {[%emt 00:00:05]} 39. Nf6+ {[%clk 00:00:12]} {[%emt
00:00:02]} Rxf6 40. Qxf6 {[%emt 00:00:02]} Rd2 {[%clk 00:00:07]} {[%emt
00:00:01]} 41. Qc3 {[%clk 00:00:09]} {[%emt 00:00:05]} Nf5 {[%clk 00:00:05]}
{[%emt 00:00:04]} 42. Rc2 {[%clk 00:00:08]} {[%emt 00:00:03]} Rd3 {[%clk
00:00:06]} {[%emt 00:00:01]} 43. Qf6 {[%clk 00:00:08]} {[%emt 00:00:02]} Bxb3
{[%clk 00:00:05]} {[%emt 00:00:04]} 44. Rce2 {[%clk 00:00:09]} Qxf6 {[%clk
00:00:05]} {[%emt 00:00:02]} 45. Be4 {[%clk 00:00:08]} {[%emt 00:00:03]} Rd7
{[%clk 00:00:05]} {[%emt 00:00:02]} 46. g4 {[%clk 00:00:07]} {[%emt 00:00:02]}
Nd4 {[%clk 00:00:07]} {[%emt 00:00:02]} 47. Rf2 {[%clk 00:00:08]} Rf7 {[%clk
00:00:07]} {[%emt 00:00:02]} 48. f5 {[%clk 00:00:07]} {[%emt 00:00:03]} Qe5+
{[%clk 00:00:09]} 49. fxg6+ {[%clk 00:00:02]} 0-1